[Event "Titled Tuesday Blitz May 25 2021"]
[White "Matveev, Vladimir"]
[Black "Mickiewicz, Piotr"]
[WhiteFideId "24130753"]
[BlackFideId "1114891"]
[WhiteElo "2383"]
[BlackElo "2263"]
[Result "1-0"]
[Round "11"]
[TimeControl "180+1"]
[Date "2021.05.25"]
[WhiteClock "0:00:10"]
[BlackClock "0:00:16"]

1. d4 {[%clk 0:03:00]}  Nf6 {[%clk 0:02:37]} 2. c4 {[%clk 0:03:00]}  g6 {[%clk 0:02:37]} 3. Nc3 {[%clk 0:03:00]}  Bg7 {[%clk 0:02:38]} 4. e4 {[%clk 0:03:00]}  d6 {[%clk 0:02:38]} 5. Be2 {[%clk 0:03:01]}  O-O {[%clk 0:02:39]} 6. Nf3 {[%clk 0:03:02]}  e5 {[%clk 0:02:38]} 7. O-O {[%clk 0:03:02]}  Nbd7 {[%clk 0:02:38]} 8. Be3 {[%clk 0:03:00]}  Ng4 {[%clk 0:02:37]} 9. Bg5 {[%clk 0:03:00]}  f6 {[%clk 0:02:37]} 10. Bc1 {[%clk 0:02:58]}  Nh6 {[%clk 0:02:36]} 11. Re1 {[%clk 0:02:49]}  Nf7 {[%clk 0:02:35]} 12. Be3 {[%clk 0:02:47]}  c6 {[%clk 0:02:34]} 13. c5 {[%clk 0:02:30]}  dxc5 {[%clk 0:02:33]} 14. dxc5 {[%clk 0:02:29]}  Qe7 {[%clk 0:02:31]} 15. b4 {[%clk 0:02:28]}  Bh6 {[%clk 0:02:17]} 16. Bxh6 {[%clk 0:02:20]}  Nxh6 {[%clk 0:02:18]} 17. Nd2 {[%clk 0:02:18]}  Kg7 {[%clk 0:02:17]} 18. Nc4 {[%clk 0:02:18]}  Nf7 {[%clk 0:02:16]} 19. Qb3 {[%clk 0:02:12]}  b6 {[%clk 0:02:16]} 20. cxb6 {[%clk 0:02:06]}  Nxb6 {[%clk 0:02:12]} 21. Na5 {[%clk 0:02:04]}  Be6 {[%clk 0:02:11]} 22. Qb2 {[%clk 0:01:59]}  Rac8 {[%clk 0:02:10]} 23. Rac1 {[%clk 0:01:57]}  Rfd8 {[%clk 0:02:06]} 24. a3 {[%clk 0:01:50]}  Rd4 {[%clk 0:02:04]} 25. Ba6 {[%clk 0:01:45]}  Rc7 {[%clk 0:02:03]} 26. f3 {[%clk 0:01:40]}  Nd6 {[%clk 0:02:02]} 27. Ne2 {[%clk 0:01:38]}  Ndc4 {[%clk 0:01:55]} 28. Nxc4 {[%clk 0:01:34]}  Nxc4 {[%clk 0:01:55]} 29. Qa1 {[%clk 0:01:27]}  c5 {[%clk 0:01:43]} 30. bxc5 {[%clk 0:00:43]}  Qxc5 {[%clk 0:01:35]} 31. Nxd4 {[%clk 0:00:43]}  exd4 {[%clk 0:01:36]} 32. Kh1 {[%clk 0:00:41]}  Qd6 {[%clk 0:00:57]} 33. Bxc4 {[%clk 0:00:34]}  Bxc4 {[%clk 0:00:58]} 34. Red1 {[%clk 0:00:22]}  d3 {[%clk 0:00:58]} 35. Qc3 {[%clk 0:00:22]}  Kh6 {[%clk 0:00:43]} 36. Rxd3 {[%clk 0:00:19]}  Bxd3 {[%clk 0:00:43]} 37. Qxc7 {[%clk 0:00:18]}  Qxa3 {[%clk 0:00:43]} 38. Qf4+ {[%clk 0:00:18]}  Kh5 {[%clk 0:00:18]} 39. g4+ {[%clk 0:00:13]}  Kh4 {[%clk 0:00:18]} 40. g5+ {[%clk 0:00:10]}  Kh5 {[%clk 0:00:16]} 41. Qg4# {[%clk 0:00:10]} 1-0


[Site "https://www.chess.com"]

[Event "Titled Tuesday Blitz May 25 2021"]
[White "Mirzoev, Azer"]
[Black "Timofeev, Artyom"]
[WhiteFideId "13400304"]
[BlackFideId "4140419"]
[WhiteElo "2525"]
[BlackElo "2582"]
[Result "1/2-1/2"]
[Round "11"]
[TimeControl "180+1"]
[Date "2021.05.25"]
[WhiteClock "0:00:08"]
[BlackClock "0:00:17"]

1. d4 {[%clk 0:03:00]}  Nf6 {[%clk 0:02:59]} 2. Nf3 {[%clk 0:03:00]}  g6 {[%clk 0:02:59]} 3. g3 {[%clk 0:02:59]}  b6 {[%clk 0:02:57]} 4. Bg2 {[%clk 0:03:00]}  Bb7 {[%clk 0:02:57]} 5. O-O {[%clk 0:03:01]}  Bg7 {[%clk 0:02:58]} 6. b3 {[%clk 0:03:00]}  O-O {[%clk 0:02:57]} 7. Bb2 {[%clk 0:03:00]}  a5 {[%clk 0:02:57]} 8. c4 {[%clk 0:02:59]}  d5 {[%clk 0:02:54]} 9. Nbd2 {[%clk 0:02:52]}  a4 {[%clk 0:02:46]} 10. e3 {[%clk 0:02:51]}  a3 {[%clk 0:02:40]} 11. Bc3 {[%clk 0:02:49]}  c5 {[%clk 0:02:38]} 12. Rc1 {[%clk 0:02:48]}  Nbd7 {[%clk 0:02:34]} 13. Ne5 {[%clk 0:02:26]}  e6 {[%clk 0:02:32]} 14. Nxd7 {[%clk 0:02:20]}  Nxd7 {[%clk 0:02:31]} 15. dxc5 {[%clk 0:02:17]}  Nxc5 {[%clk 0:02:23]} 16. Bxg7 {[%clk 0:02:16]}  Kxg7 {[%clk 0:02:23]} 17. cxd5 {[%clk 0:02:11]}  Bxd5 {[%clk 0:02:23]} 18. Nc4 {[%clk 0:02:10]}  Bxc4 {[%clk 0:02:11]} 19. Rxc4 {[%clk 0:02:05]}  Qxd1 {[%clk 0:02:09]} 20. Rxd1 {[%clk 0:02:03]}  Rad8 {[%clk 0:01:57]} 21. Rdd4 {[%clk 0:01:42]}  f5 {[%clk 0:01:19]} 22. b4 {[%clk 0:01:21]}  Nd3 {[%clk 0:01:01]} 23. Rc7+ {[%clk 0:01:12]}  Kf6 {[%clk 0:01:00]} 24. Rxh7 {[%clk 0:00:29]}  Rxd4 {[%clk 0:00:57]} 25. exd4 {[%clk 0:00:29]}  Nxb4 {[%clk 0:00:57]} 26. Ra7 {[%clk 0:00:29]}  Rd8 {[%clk 0:00:50]} 27. Rxa3 {[%clk 0:00:27]}  Rxd4 {[%clk 0:00:50]} 28. Bf1 {[%clk 0:00:26]}  Rd1 {[%clk 0:00:39]} 29. Rb3 {[%clk 0:00:19]}  Nxa2 {[%clk 0:00:30]} 30. Rxb6 {[%clk 0:00:19]}  Nc3 {[%clk 0:00:31]} 31. Rb2 {[%clk 0:00:17]}  e5 {[%clk 0:00:26]} 32. Kg2 {[%clk 0:00:14]}  Ne4 {[%clk 0:00:25]} 33. h4 {[%clk 0:00:13]}  f4 {[%clk 0:00:21]} 34. gxf4 {[%clk 0:00:12]}  exf4 {[%clk 0:00:22]} 35. Be2 {[%clk 0:00:12]}  Re1 {[%clk 0:00:17]} 36. Bf3 {[%clk 0:00:11]}  Nd6 {[%clk 0:00:17]} 37. Rd2 {[%clk 0:00:10]}  Nf5 {[%clk 0:00:17]} 38. Kh3 {[%clk 0:00:08]}  Re8 {[%clk 0:00:17]} 39. Bg4 {[%clk 0:00:07]}  Rh8 {[%clk 0:00:16]} 40. Bxf5 {[%clk 0:00:07]}  Kxf5 {[%clk 0:00:17]} 41. f3 {[%clk 0:00:07]}  Re8 {[%clk 0:00:16]} 42. Rd5+ {[%clk 0:00:07]}  Kf6 {[%clk 0:00:15]} 43. Kg4 {[%clk 0:00:07]}  Re1 {[%clk 0:00:15]} 44. Kxf4 {[%clk 0:00:07]}  Rh1 {[%clk 0:00:16]} 45. Kg3 {[%clk 0:00:07]}  Rg1+ {[%clk 0:00:16]} 46. Kf2 {[%clk 0:00:07]}  Rh1 {[%clk 0:00:16]} 47. Kg3 {[%clk 0:00:08]}  Rg1+ {[%clk 0:00:16]} 48. Kf2 {[%clk 0:00:08]}  Rh1 {[%clk 0:00:17]} 49. Kg3 {[%clk 0:00:08]} 1/2-1/2


[Site "https://www.chess.com"]

[Event "Titled Tuesday Blitz May 25 2021"]
[White "Morefield, Jason"]
[Black "Sumaneev, Dmitry"]
[WhiteFideId "30920825"]
[BlackFideId "4125312"]
[WhiteElo "2171"]
[BlackElo "2529"]
[Result "1-0"]
[Round "11"]
[TimeControl "180+1"]
[Date "2021.05.25"]
[WhiteClock "0:00:34"]
[BlackClock "0:00:03"]

1. b3 {[%clk 0:03:00]}  e5 {[%clk 0:02:59]} 2. Bb2 {[%clk 0:03:01]}  d6 {[%clk 0:03:00]} 3. c4 {[%clk 0:02:58]}  Nf6 {[%clk 0:03:00]} 4. e3 {[%clk 0:02:58]}  g6 {[%clk 0:03:01]} 5. Nf3 {[%clk 0:02:58]}  Bg7 {[%clk 0:03:01]} 6. d4 {[%clk 0:02:59]}  e4 {[%clk 0:03:00]} 7. Nfd2 {[%clk 0:02:59]}  c6 {[%clk 0:03:00]} 8. Nc3 {[%clk 0:02:59]}  d5 {[%clk 0:02:57]} 9. cxd5 {[%clk 0:02:59]}  cxd5 {[%clk 0:02:58]} 10. Ba3 {[%clk 0:02:59]}  Nc6 {[%clk 0:02:53]} 11. Nb5 {[%clk 0:02:50]}  Bf8 {[%clk 0:02:51]} 12. Bxf8 {[%clk 0:02:49]}  Kxf8 {[%clk 0:02:50]} 13. Qc1 {[%clk 0:02:45]}  Kg7 {[%clk 0:02:48]} 14. Be2 {[%clk 0:02:44]}  a6 {[%clk 0:02:47]} 15. Nc3 {[%clk 0:02:44]}  Ne7 {[%clk 0:02:43]} 16. Qa3 {[%clk 0:02:41]}  Bf5 {[%clk 0:02:34]} 17. O-O {[%clk 0:02:40]}  h5 {[%clk 0:02:34]} 18. Rfc1 {[%clk 0:02:39]}  h4 {[%clk 0:02:29]} 19. h3 {[%clk 0:02:39]}  g5 {[%clk 0:02:29]} 20. f3 {[%clk 0:02:13]}  exf3 {[%clk 0:01:32]} 21. Bxf3 {[%clk 0:02:11]}  Qd7 {[%clk 0:01:26]} 22. Rf1 {[%clk 0:02:03]}  Ng6 {[%clk 0:01:10]} 23. Rad1 {[%clk 0:01:55]}  Rae8 {[%clk 0:01:01]} 24. Qc5 {[%clk 0:01:37]}  Rc8 {[%clk 0:00:48]} 25. Qb4 {[%clk 0:01:33]}  g4 {[%clk 0:00:41]} 26. hxg4 {[%clk 0:01:32]}  Bxg4 {[%clk 0:00:41]} 27. e4 {[%clk 0:01:25]}  Bxf3 {[%clk 0:00:37]} 28. Rxf3 {[%clk 0:01:23]}  dxe4 {[%clk 0:00:15]} 29. Ndxe4 {[%clk 0:01:21]}  Nxe4 {[%clk 0:00:14]} 30. Nxe4 {[%clk 0:01:22]}  h3 {[%clk 0:00:15]} 31. d5 {[%clk 0:00:57]}  hxg2 {[%clk 0:00:03]} 32. Qd4+ {[%clk 0:00:56]}  Kf8 {[%clk 0:00:03]} 33. Nf6 {[%clk 0:00:34]} 1-0


[Site "https://www.chess.com"]

[Event "Titled Tuesday Blitz May 25 2021"]
[White "Odinaev, Timur"]
[Black "Arpita, Mukherjee"]
[WhiteFideId "4163770"]
[BlackFideId "5056403"]
[WhiteElo "2306"]
[BlackElo "1934"]
[Result "0-1"]
[Round "11"]
[TimeControl "180+1"]
[Date "2021.05.25"]
[WhiteClock "0:00:12"]
[BlackClock "0:01:03"]

1. d4 {[%clk 0:02:59]}  Nf6 {[%clk 0:02:59]} 2. c4 {[%clk 0:03:00]}  g6 {[%clk 0:02:59]} 3. g3 {[%clk 0:03:00]}  Bg7 {[%clk 0:03:00]} 4. Bg2 {[%clk 0:03:00]}  d6 {[%clk 0:03:01]} 5. Nc3 {[%clk 0:03:00]}  O-O {[%clk 0:03:02]} 6. Nf3 {[%clk 0:03:00]}  Nbd7 {[%clk 0:03:02]} 7. O-O {[%clk 0:03:00]}  e5 {[%clk 0:03:03]} 8. e4 {[%clk 0:03:01]}  c6 {[%clk 0:03:02]} 9. h3 {[%clk 0:03:01]}  exd4 {[%clk 0:03:03]} 10. Nxd4 {[%clk 0:03:00]}  Nc5 {[%clk 0:03:03]} 11. Re1 {[%clk 0:02:56]}  Re8 {[%clk 0:03:03]} 12. Qc2 {[%clk 0:02:54]}  a5 {[%clk 0:03:02]} 13. Bf4 {[%clk 0:02:47]}  Nh5 {[%clk 0:02:57]} 14. Be3 {[%clk 0:02:45]}  a4 {[%clk 0:02:57]} 15. Rad1 {[%clk 0:02:44]}  Qa5 {[%clk 0:02:56]} 16. Nde2 {[%clk 0:02:27]}  Be6 {[%clk 0:02:47]} 17. g4 {[%clk 0:02:05]}  Nf6 {[%clk 0:02:44]} 18. b3 {[%clk 0:01:45]}  axb3 {[%clk 0:02:41]} 19. axb3 {[%clk 0:01:45]}  Qb4 {[%clk 0:02:35]} 20. Nd4 {[%clk 0:01:33]}  Ra3 {[%clk 0:02:08]} 21. Rb1 {[%clk 0:01:30]}  Nfd7 {[%clk 0:02:02]} 22. Nxe6 {[%clk 0:01:14]}  Nxe6 {[%clk 0:01:52]} 23. Na2 {[%clk 0:01:03]}  Qa5 {[%clk 0:01:45]} 24. Re2 {[%clk 0:01:00]}  Nd4 {[%clk 0:01:41]} 25. Bxd4 {[%clk 0:00:59]}  Bxd4 {[%clk 0:01:42]} 26. b4 {[%clk 0:00:55]}  Qa4 {[%clk 0:01:32]} 27. Qxa4 {[%clk 0:00:55]}  Rxa4 {[%clk 0:01:32]} 28. b5 {[%clk 0:00:53]}  c5 {[%clk 0:01:32]} 29. e5 {[%clk 0:00:46]}  Nxe5 {[%clk 0:01:29]} 30. Bxb7 {[%clk 0:00:44]}  Rb8 {[%clk 0:01:21]} 31. Bd5 {[%clk 0:00:42]}  Nxc4 {[%clk 0:01:20]} 32. Nc1 {[%clk 0:00:34]}  Ne5 {[%clk 0:01:13]} 33. Kg2 {[%clk 0:00:32]}  g5 {[%clk 0:01:09]} 34. h4 {[%clk 0:00:31]}  h6 {[%clk 0:01:09]} 35. hxg5 {[%clk 0:00:31]}  hxg5 {[%clk 0:01:10]} 36. Nb3 {[%clk 0:00:25]}  Ng6 {[%clk 0:01:08]} 37. Nxd4 {[%clk 0:00:22]}  Rxd4 {[%clk 0:01:06]} 38. Bc6 {[%clk 0:00:11]}  Nf4+ {[%clk 0:01:06]} 39. Kf3 {[%clk 0:00:12]}  Nxe2 {[%clk 0:01:06]} 40. Kxe2 {[%clk 0:00:13]}  Rxg4 {[%clk 0:01:05]} 41. Kf3 {[%clk 0:00:12]}  Rb4 {[%clk 0:01:05]} 42. Rxb4 {[%clk 0:00:11]}  cxb4 {[%clk 0:01:06]} 43. Ke3 {[%clk 0:00:11]}  Kg7 {[%clk 0:01:02]} 44. Kd3 {[%clk 0:00:12]}  Kf6 {[%clk 0:01:02]} 45. Kc4 {[%clk 0:00:12]}  Ke5 {[%clk 0:01:03]} 0-1


[Site "https://www.chess.com"]

[Event "Titled Tuesday Blitz May 25 2021"]
[White "Orlov, Oleg"]
[Black "Lamaze, Simon"]
[WhiteFideId "4166612"]
[BlackFideId "36069264"]
[WhiteElo "2395"]
[BlackElo "1938"]
[Result "0-1"]
[Round "11"]
[TimeControl "180+1"]
[Date "2021.05.25"]
[WhiteClock "0:00:19"]
[BlackClock "0:00:13"]

1. Nf3 {[%clk 0:03:00]}  c6 {[%clk 0:02:56]} 2. d4 {[%clk 0:02:58]}  g6 {[%clk 0:02:54]} 3. g3 {[%clk 0:02:59]}  Na6 {[%clk 0:02:52]} 4. Bg2 {[%clk 0:02:57]}  Nc7 {[%clk 0:02:53]} 5. e4 {[%clk 0:02:56]}  Bg7 {[%clk 0:02:52]} 6. h4 {[%clk 0:02:56]}  d5 {[%clk 0:02:53]} 7. e5 {[%clk 0:02:54]}  h5 {[%clk 0:02:53]} 8. Nbd2 {[%clk 0:02:42]}  Nh6 {[%clk 0:02:51]} 9. Nf1 {[%clk 0:02:29]}  Ng4 {[%clk 0:02:35]} 10. Ng1 {[%clk 0:02:19]}  Bf5 {[%clk 0:02:29]} 11. f3 {[%clk 0:02:18]}  Nh6 {[%clk 0:02:28]} 12. Ne3 {[%clk 0:02:18]}  Be6 {[%clk 0:02:29]} 13. g4 {[%clk 0:02:16]}  hxg4 {[%clk 0:02:28]} 14. fxg4 {[%clk 0:02:17]}  Qd7 {[%clk 0:02:27]} 15. Bh3 {[%clk 0:02:16]}  c5 {[%clk 0:02:25]} 16. c3 {[%clk 0:02:15]}  cxd4 {[%clk 0:02:23]} 17. cxd4 {[%clk 0:02:15]}  Rc8 {[%clk 0:02:21]} 18. Rh2 {[%clk 0:02:08]}  Nb5 {[%clk 0:02:20]} 19. a4 {[%clk 0:02:06]}  Nc7 {[%clk 0:02:17]} 20. Rc2 {[%clk 0:02:06]}  O-O {[%clk 0:02:06]} 21. Ra3 {[%clk 0:02:06]}  Na6 {[%clk 0:02:03]} 22. Rac3 {[%clk 0:02:06]}  Nb4 {[%clk 0:02:03]} 23. Rxc8 {[%clk 0:02:05]}  Rxc8 {[%clk 0:02:04]} 24. Rc3 {[%clk 0:02:01]}  a5 {[%clk 0:01:52]} 25. Kf2 {[%clk 0:01:59]}  Rf8 {[%clk 0:01:48]} 26. Kg2 {[%clk 0:01:51]}  Nc6 {[%clk 0:01:30]} 27. Rd3 {[%clk 0:01:29]}  f6 {[%clk 0:01:18]} 28. exf6 {[%clk 0:01:29]}  exf6 {[%clk 0:01:19]} 29. Bd2 {[%clk 0:01:28]}  f5 {[%clk 0:01:11]} 30. g5 {[%clk 0:01:25]}  Ng4 {[%clk 0:01:10]} 31. Nf3 {[%clk 0:01:23]}  f4 {[%clk 0:01:03]} 32. Nxg4 {[%clk 0:01:21]}  Bxg4 {[%clk 0:01:04]} 33. Qh1 {[%clk 0:01:05]}  Qf5 {[%clk 0:00:59]} 34. Bxg4 {[%clk 0:00:53]}  Qxd3 {[%clk 0:00:31]} 35. h5 {[%clk 0:00:46]}  Qe2+ {[%clk 0:00:29]} 36. Kh3 {[%clk 0:00:43]}  gxh5 {[%clk 0:00:17]} 37. Bxh5 {[%clk 0:00:41]}  Nxd4 {[%clk 0:00:17]} 38. Bxa5 {[%clk 0:00:34]}  Nxf3 {[%clk 0:00:17]} 39. Bxf3 {[%clk 0:00:34]}  Qe6+ {[%clk 0:00:17]} 40. Bg4 {[%clk 0:00:34]}  Qe3+ {[%clk 0:00:17]} 41. Kh4 {[%clk 0:00:34]}  Kf7 {[%clk 0:00:15]} 42. Qxd5+ {[%clk 0:00:33]}  Kg6 {[%clk 0:00:15]} 43. Bh5+ {[%clk 0:00:19]}  Kh7 {[%clk 0:00:15]} 44. g6+ {[%clk 0:00:18]}  Kh8 {[%clk 0:00:15]} 45. Qg5 {[%clk 0:00:18]}  Bf6 {[%clk 0:00:13]} 46. Bc3 {[%clk 0:00:19]}  Qg3# {[%clk 0:00:13]} 0-1


[Site "https://www.chess.com"]

[Event "Titled Tuesday Blitz May 25 2021"]
[White "Piesik, Piotr"]
[Black "davigator"]
[WhiteFideId "1136194"]
[WhiteElo "2369"]
[BlackElo "2436"]
[Result "1-0"]
[Round "11"]
[TimeControl "180+1"]
[Date "2021.05.25"]
[WhiteClock "0:00:28"]
[BlackClock "0:00:18"]

1. Nf3 {[%clk 0:02:53]}  d5 {[%clk 0:02:58]} 2. g3 {[%clk 0:02:53]}  Bg4 {[%clk 0:02:57]} 3. Bg2 {[%clk 0:02:53]}  Nd7 {[%clk 0:02:57]} 4. O-O {[%clk 0:02:54]}  c6 {[%clk 0:02:57]} 5. d3 {[%clk 0:02:54]}  e5 {[%clk 0:02:57]} 6. Nbd2 {[%clk 0:02:55]}  Ngf6 {[%clk 0:02:56]} 7. e4 {[%clk 0:02:55]}  d4 {[%clk 0:02:52]} 8. h3 {[%clk 0:02:55]}  Bxf3 {[%clk 0:02:51]} 9. Qxf3 {[%clk 0:02:54]}  Bd6 {[%clk 0:02:51]} 10. Nc4 {[%clk 0:02:53]}  Bc7 {[%clk 0:02:49]} 11. a4 {[%clk 0:02:54]}  O-O {[%clk 0:02:48]} 12. Qe2 {[%clk 0:02:53]}  b6 {[%clk 0:02:43]} 13. f4 {[%clk 0:02:52]}  a6 {[%clk 0:02:39]} 14. f5 {[%clk 0:02:51]}  b5 {[%clk 0:02:38]} 15. Nd2 {[%clk 0:02:51]}  Ne8 {[%clk 0:02:34]} 16. Nb3 {[%clk 0:02:48]}  Bd6 {[%clk 0:02:33]} 17. g4 {[%clk 0:02:46]}  Be7 {[%clk 0:02:16]} 18. Bd2 {[%clk 0:02:23]}  Nc7 {[%clk 0:02:08]} 19. Na5 {[%clk 0:02:15]}  Nb8 {[%clk 0:02:08]} 20. c3 {[%clk 0:02:00]}  Bc5 {[%clk 0:02:01]} 21. Kh2 {[%clk 0:01:57]}  f6 {[%clk 0:01:57]} 22. h4 {[%clk 0:01:56]}  Bb6 {[%clk 0:01:57]} 23. Nb3 {[%clk 0:01:54]}  Qe8 {[%clk 0:01:47]} 24. a5 {[%clk 0:01:49]}  Ba7 {[%clk 0:01:46]} 25. cxd4 {[%clk 0:01:49]}  exd4 {[%clk 0:01:36]} 26. Rac1 {[%clk 0:01:47]}  Qf7 {[%clk 0:01:32]} 27. Nc5 {[%clk 0:01:41]}  Bxc5 {[%clk 0:01:32]} 28. Rxc5 {[%clk 0:01:42]}  Re8 {[%clk 0:01:30]} 29. Bf4 {[%clk 0:01:38]}  Ra7 {[%clk 0:01:26]} 30. Qf2 {[%clk 0:01:34]}  Qd7 {[%clk 0:01:24]} 31. Rfc1 {[%clk 0:01:30]}  h6 {[%clk 0:01:20]} 32. Qg3 {[%clk 0:01:29]}  Kh8 {[%clk 0:01:15]} 33. g5 {[%clk 0:01:21]}  Rg8 {[%clk 0:01:05]} 34. Bf3 {[%clk 0:01:16]}  Qf7 {[%clk 0:01:01]} 35. Bd1 {[%clk 0:01:07]}  Re8 {[%clk 0:00:56]} 36. Bc2 {[%clk 0:00:44]}  Re7 {[%clk 0:00:43]} 37. Rg1 {[%clk 0:00:41]}  Re8 {[%clk 0:00:37]} 38. gxh6 {[%clk 0:00:41]}  gxh6 {[%clk 0:00:36]} 39. Bxh6 {[%clk 0:00:40]}  Rg8 {[%clk 0:00:35]} 40. Qxg8+ {[%clk 0:00:39]}  Qxg8 {[%clk 0:00:35]} 41. Rxg8+ {[%clk 0:00:39]}  Kxg8 {[%clk 0:00:35]} 42. Bf4 {[%clk 0:00:38]}  Kf7 {[%clk 0:00:32]} 43. b4 {[%clk 0:00:37]}  Rb7 {[%clk 0:00:29]} 44. Bb3+ {[%clk 0:00:37]}  Ke7 {[%clk 0:00:28]} 45. h5 {[%clk 0:00:36]}  Nd7 {[%clk 0:00:22]} 46. Rxc6 {[%clk 0:00:36]}  Ne8 {[%clk 0:00:23]} 47. Rxa6 {[%clk 0:00:32]}  Nf8 {[%clk 0:00:20]} 48. h6 {[%clk 0:00:31]}  Nh7 {[%clk 0:00:19]} 49. Bg8 {[%clk 0:00:29]}  Nf8 {[%clk 0:00:18]} 50. h7 {[%clk 0:00:29]}  Nxh7 {[%clk 0:00:19]} 51. Bxh7 {[%clk 0:00:30]}  Kf8 {[%clk 0:00:19]} 52. Bg6 {[%clk 0:00:29]}  Nc7 {[%clk 0:00:18]} 53. Rxf6+ {[%clk 0:00:28]}  Kg7 {[%clk 0:00:18]} 54. Rf7+ {[%clk 0:00:29]}  Kg8 {[%clk 0:00:18]} 55. Rxc7 {[%clk 0:00:28]}  Rb8 {[%clk 0:00:18]} 56. Rg7+ {[%clk 0:00:28]} 1-0


[Site "https://www.chess.com"]

[Event "Titled Tuesday Blitz May 25 2021"]
[White "Praggnanandhaa R"]
[Black "Khanin, Semen"]
[WhiteFideId "25059530"]
[BlackFideId "4111990"]
[WhiteElo "2555"]
[BlackElo "2521"]
[Result "1-0"]
[Round "11"]
[TimeControl "180+1"]
[Date "2021.05.25"]
[WhiteClock "0:01:32"]
[BlackClock "0:01:26"]

1. Nf3 {[%clk 0:03:00]}  g6 {[%clk 0:03:00]} 2. e4 {[%clk 0:02:59]}  Bg7 {[%clk 0:03:00]} 3. d4 {[%clk 0:03:00]}  d6 {[%clk 0:03:01]} 4. Bc4 {[%clk 0:03:00]}  Nf6 {[%clk 0:02:58]} 5. Qe2 {[%clk 0:03:00]}  Nc6 {[%clk 0:02:57]} 6. h3 {[%clk 0:02:56]}  O-O {[%clk 0:02:53]} 7. O-O {[%clk 0:02:55]}  e5 {[%clk 0:02:52]} 8. dxe5 {[%clk 0:02:53]}  Nxe5 {[%clk 0:02:52]} 9. Nxe5 {[%clk 0:02:53]}  dxe5 {[%clk 0:02:52]} 10. Rd1 {[%clk 0:02:53]}  Qe7 {[%clk 0:02:51]} 11. b3 {[%clk 0:02:53]}  Rd8 {[%clk 0:02:48]} 12. Ba3 {[%clk 0:02:49]}  Qe8 {[%clk 0:02:48]} 13. Nc3 {[%clk 0:02:49]}  Rxd1+ {[%clk 0:02:39]} 14. Rxd1 {[%clk 0:02:50]}  c6 {[%clk 0:02:40]} 15. Rd6 {[%clk 0:02:40]}  Nd7 {[%clk 0:02:24]} 16. Rd1 {[%clk 0:02:17]}  Nb6 {[%clk 0:02:23]} 17. Bd3 {[%clk 0:02:15]}  Be6 {[%clk 0:02:22]} 18. Bc5 {[%clk 0:02:14]}  Rd8 {[%clk 0:02:17]} 19. a4 {[%clk 0:02:14]}  Bf8 {[%clk 0:02:17]} 20. Qe3 {[%clk 0:02:11]}  Bxc5 {[%clk 0:02:05]} 21. Qxc5 {[%clk 0:02:12]}  f6 {[%clk 0:02:06]} 22. a5 {[%clk 0:02:06]}  Nc8 {[%clk 0:02:06]} 23. b4 {[%clk 0:02:00]}  Qe7 {[%clk 0:02:00]} 24. Kh2 {[%clk 0:01:43]}  b6 {[%clk 0:01:59]} 25. Qxe7 {[%clk 0:01:39]}  Nxe7 {[%clk 0:01:59]} 26. Bc4 {[%clk 0:01:40]}  Nd5 {[%clk 0:01:28]} 27. exd5 {[%clk 0:01:34]}  cxd5 {[%clk 0:01:28]} 28. Bxd5 {[%clk 0:01:33]}  Bxd5 {[%clk 0:01:29]} 29. Nxd5 {[%clk 0:01:32]}  Kf7 {[%clk 0:01:28]} 30. axb6 {[%clk 0:01:32]}  axb6 {[%clk 0:01:28]} 31. c4 {[%clk 0:01:33]}  e4 {[%clk 0:01:26]} 32. Ne3 {[%clk 0:01:32]} 1-0


[Site "https://www.chess.com"]